bitfinex/quotes_BTCUSD_20230901
["timestamp","ask_amount","ask_price","bid_price","bid_amount"]
[1693555029866,2.54007386,26022.0,26021.0,0.04074841]
[1693555030073,2.54001386,26022.0,26021.0,0.04074841]
[1693555030287,2.53767386,26022.0,26021.0,0.04074841]
[1693555030503,2.53629386,26022.0,26021.0,0.04074841]
[1693555030707,2.53767386,26022.0,26021.0,0.04074841]
[1693555031118,2.53725386,26022.0,26021.0,0.04074841]
[1693555031330,2.53719386,26022.0,26021.0,0.04074841]
[1693555031532,2.53569386,26022.0,26021.0,0.04074841]
[1693555031742,2.53557386,26022.0,26021.0,0.04074841]
[1693555031961,2.53641386,26022.0,26021.0,0.04074841]
[1693555032162,2.53659386,26022.0,26021.0,0.04074841]
[1693555032374,2.53695386,26022.0,26021.0,0.04074841]
[1693555032783,2.53749386,26022.0,26021.0,0.04074841]
[1693555032990,2.53695386,26022.0,26021.0,0.04074841]
[1693555033199,2.53701386,26022.0,26021.0,0.04074841]
[1693555033401,2.53731386,26022.0,26021.0,0.04074841]
[1693555033603,2.53707386,26022.0,26021.0,0.04074841]
[1693555033809,2.53689386,26022.0,26021.0,0.04074841]
[1693555034214,2.53695386,26022.0,26021.0,0.04074841]
[1693555034628,2.53719386,26022.0,26021.0,0.04074841]
[1693555034833,2.53725386,26022.0,26021.0,0.04074841]
[1693555034987,2.53695386,26022.0,26021.0,0.04074841]
[1693555035188,2.53689386,26022.0,26021.0,0.04074841]
[1693555035390,2.53695386,26022.0,26021.0,0.14074841]
[1693555035595,2.53785386,26022.0,26021.0,0.14074841]
[1693555035801,2.54289386,26022.0,26021.0,0.14074841]
[1693555035998,2.54331386,26022.0,26021.0,0.14074841]
[1693555036198,2.54319386,26022.0,26021.0,0.14074841]
[1693555036529,2.54067386,26022.0,26021.0,0.14074841]
[1693555036788,2.54181386,26022.0,26021.0,0.14074841]
[1693555036984,2.54175386,26022.0,26021.0,0.14074841]
[1693555037231,2.54235386,26022.0,26021.0,0.14074841]
[1693555037469,2.54223386,26022.0,26021.0,0.14074841]
[1693555037702,2.54217386,26022.0,26021.0,0.14074841]
[1693555037939,2.54103386,26022.0,26021.0,0.14074841]
[1693555038185,2.53935386,26022.0,26021.0,0.14074841]
[1693555038603,2.54151386,26022.0,26021.0,0.14074841]
[1693555038805,2.54139386,26022.0,26021.0,0.14074841]
[1693555039013,3.11896886,26022.0,26021.0,0.14074841]
[1693555039242,3.12232886,26022.0,26021.0,0.14074841]
[1693555039426,3.11968886,26022.0,26021.0,0.14074841]
[1693555039626,3.11878886,26022.0,26021.0,0.14074841]
[1693555039831,3.12004886,26022.0,26021.0,0.14074841]
[1693555040119,3.11854886,26022.0,26021.0,0.14074841]
[1693555040332,3.11836886,26022.0,26021.0,0.14074841]
[1693555040565,3.11842886,26022.0,26021.0,0.14074841]
[1693555040742,3.11836886,26022.0,26021.0,0.14074841]
[1693555040952,3.11830886,26022.0,26021.0,0.14074841]
[1693555041145,3.11824886,26022.0,26021.0,0.14074841]
[1693555041301,3.11818886,26022.0,26021.0,0.14074841]
[1693555041510,3.11860886,26022.0,26021.0,0.14074841]
[1693555041708,3.11746886,26022.0,26021.0,0.14074841]
[1693555042008,3.11752886,26022.0,26021.0,0.14074841]
[1693555042553,3.11740886,26022.0,26021.0,0.14074841]
[1693555042756,3.11704886,26022.0,26021.0,0.14074841]
[1693555042966,3.11698886,26022.0,26021.0,0.14074841]
[1693555043320,3.11704886,26022.0,26021.0,0.14074841]
[1693555043542,3.11620886,26022.0,26021.0,0.14074841]
[1693555043744,3.11698886,26022.0,26021.0,0.14074841]
[1693555043974,3.11692886,26022.0,26021.0,0.14074841]
[1693555044196,2.54043386,26022.0,26021.0,0.14074841]
[1693555044403,2.54133386,26022.0,26021.0,0.14074841]
[1693555044622,2.54151386,26022.0,26021.0,0.14074841]
[1693555044825,2.54157386,26022.0,26021.0,0.14074841]
[1693555044998,2.54151386,26022.0,26021.0,0.14074841]
[1693555045178,2.54133386,26022.0,26021.0,0.14074841]
[1693555045381,2.54103386,26022.0,26021.0,0.14074841]
[1693555045576,2.54091386,26022.0,26021.0,0.14074841]
[1693555045805,2.54121386,26022.0,26021.0,0.14074841]
[1693555046013,2.54019386,26022.0,26021.0,0.14074841]
[1693555046366,2.54013386,26022.0,26021.0,0.14074841]
[1693555046859,2.54007386,26022.0,26021.0,0.14074841]
[1693555047061,2.53941386,26022.0,26021.0,0.14074841]
[1693555047266,2.54019386,26022.0,26021.0,0.14074841]
[1693555047406,2.53989386,26022.0,26021.0,0.14074841]
[1693555047612,2.53977386,26022.0,26021.0,0.14074841]
[1693555047840,2.53971386,26022.0,26021.0,0.14074841]
[1693555048229,2.53977386,26022.0,26021.0,0.14074841]
[1693555048811,2.53929386,26022.0,26021.0,0.14074841]
[1693555049018,2.53923386,26022.0,26021.0,0.14074841]
[1693555049432,2.53917386,26022.0,26021.0,0.14074841]
[1693555049646,2.53983386,26022.0,26021.0,0.14074841]
[1693555049841,2.53875386,26022.0,26021.0,0.14074841]
[1693555049976,2.53863386,26022.0,26021.0,0.14074841]
[1693555050376,2.53953386,26022.0,26021.0,0.14074841]
[1693555050577,2.54319386,26022.0,26021.0,0.14074841]
[1693555050793,2.54313386,26022.0,26021.0,0.14074841]
[1693555050987,2.54259386,26022.0,26021.0,0.14074841]
[1693555051253,2.54247386,26022.0,26021.0,0.14074841]
[1693555051455,2.54193386,26022.0,26021.0,0.14074841]
[1693555051683,2.54103386,26022.0,26021.0,0.14074841]
[1693555051887,2.54115386,26022.0,26021.0,0.14074841]
[1693555052092,2.54055386,26022.0,26021.0,0.14074841]
[1693555052304,2.54049386,26022.0,26021.0,0.14074841]
[1693555052505,2.54025386,26022.0,26021.0,0.14074841]
[1693555052709,2.54031386,26022.0,26021.0,0.14074841]
[1693555052912,2.54067386,26022.0,26021.0,0.14074841]
[1693555053116,2.53941386,26022.0,26021.0,0.14074841]
[1693555053321,2.53959386,26022.0,26021.0,0.14074841]
[1693555053737,2.53971386,26022.0,26021.0,0.14074841]
[1693555053937,2.53965386,26022.0,26021.0,0.14074841]
[1693555054348,2.53959386,26022.0,26021.0,0.14074841]
[1693555054522,2.53869386,26022.0,26021.0,0.14074841]
[1693555054759,2.53977386,26022.0,26021.0,0.14074841]
[1693555054938,2.54025386,26022.0,26021.0,0.12074841]
[1693555055140,2.54019386,26022.0,26021.0,0.14074841]
[1693555055486,2.53983386,26022.0,26021.0,0.14074841]
[1693555055696,2.53989386,26022.0,26021.0,0.14074841]
[1693555055898,2.85101832,26022.0,26021.0,0.14074841]
[1693555056291,2.85065832,26022.0,26021.0,0.14074841]
[1693555056632,2.85029832,26022.0,26021.0,0.14074841]
[1693555057059,2.85125832,26022.0,26021.0,0.14074841]
[1693555057260,3.42763332,26022.0,26021.0,0.14074841]
[1693555057467,3.43147332,26022.0,26021.0,0.14074841]
[1693555057682,3.43081332,26022.0,26021.0,0.14074841]
[1693555057881,3.42991332,26022.0,26021.0,0.14074841]
[1693555058087,3.42961332,26022.0,26021.0,0.14074841]
[1693555058290,3.42895332,26022.0,26021.0,0.14074841]
[1693555058442,3.42889332,26022.0,26021.0,0.14074841]
[1693555058644,3.42865332,26022.0,26021.0,0.14074841]
[1693555059062,3.42889332,26022.0,26021.0,0.14074841]
[1693555059261,3.54735332,26022.0,26021.0,0.14074841]
[1693555059462,3.56829332,26022.0,26021.0,0.14074841]
[1693555059729,3.56865332,26022.0,26021.0,0.14074841]
[1693555059915,3.56907332,26022.0,26021.0,0.14074841]
[1693555060087,3.56949332,26022.0,26021.0,0.12074841]
[1693555060262,3.56793332,26022.0,26021.0,0.12074841]
[1693555060471,3.56565332,26022.0,26021.0,0.12074841]
[1693555060675,3.56589332,26022.0,26021.0,0.12074841]
[1693555060888,3.56535332,26022.0,26021.0,0.12074841]
[1693555061087,3.56469332,26022.0,26021.0,0.12074841]
[1693555061290,3.56427332,26022.0,26021.0,0.12074841]
[1693555061491,3.56037332,26022.0,26021.0,0.12074841]
[1693555061758,3.56025332,26022.0,26021.0,0.12074841]
[1693555061924,3.56091332,26022.0,26021.0,0.12074841]
[1693555062140,3.56121332,26022.0,26021.0,0.12074841]
[1693555062343,3.56067332,26022.0,26021.0,0.12074841]
[1693555062578,3.56055332,26022.0,26021.0,0.12074841]
[1693555062772,3.56043332,26022.0,26021.0,0.12074841]
[1693555063001,3.56079332,26022.0,26021.0,0.12074841]
[1693555063132,3.56067332,26022.0,26021.0,0.12074841]
[1693555063335,3.56091332,26022.0,26021.0,0.12074841]
[1693555063692,3.86565181,26022.0,26021.0,0.12074841]
[1693555064209,3.86547181,26022.0,26021.0,0.12074841]
[1693555064409,3.86499181,26022.0,26021.0,0.12074841]
[1693555064624,3.86439181,26022.0,26021.0,0.12074841]
[1693555064804,3.86499181,26022.0,26021.0,0.12074841]
[1693555065031,3.86517181,26022.0,26021.0,0.12074841]
[1693555065245,3.86505181,26022.0,26021.0,0.12074841]
[1693555065446,3.86493181,26022.0,26021.0,0.12074841]
[1693555065646,3.86475181,26022.0,26021.0,0.12074841]
[1693555065852,3.57111332,26022.0,26021.0,0.12074841]
[1693555066059,3.57087332,26022.0,26021.0,0.12074841]
[1693555066251,3.57075332,26022.0,26021.0,0.12074841]
[1693555066389,3.57003332,26022.0,26021.0,0.12074841]
[1693555066591,3.56997332,26022.0,26021.0,0.12074841]
[1693555067006,3.57009332,26022.0,26021.0,0.12074841]
[1693555067280,3.76218332,26022.0,26021.0,0.12074841]
[1693555067451,3.76212332,26022.0,26021.0,0.12074841]
[1693555067651,3.76200332,26022.0,26021.0,0.12074841]
[1693555067896,3.76194332,26022.0,26021.0,0.12074841]
[1693555068076,3.76200332,26022.0,26021.0,0.12074841]
[1693555068277,3.76194332,26022.0,26021.0,0.12074841]
[1693555068478,3.76164332,26022.0,26021.0,0.12074841]
[1693555068703,3.75540332,26022.0,26021.0,0.12074841]
[1693555068904,3.75480332,26022.0,26021.0,0.12074841]
[1693555069076,3.75468332,26022.0,26021.0,0.12074841]
[1693555069293,3.75582332,26022.0,26021.0,0.12074841]
[1693555069560,3.75666332,26022.0,26021.0,0.12074841]
[1693555069743,3.75738332,26022.0,26021.0,0.12074841]
[1693555069943,3.75744332,26022.0,26021.0,0.12074841]
[1693555070135,3.75792332,26022.0,26021.0,0.12074841]
[1693555070365,3.75738332,26022.0,26021.0,0.12074841]
[1693555070679,3.75750332,26022.0,26021.0,0.12074841]
[1693555070875,3.75672332,26022.0,26021.0,0.12074841]
[1693555071288,3.75678332,26022.0,26021.0,0.12074841]
[1693555071487,3.75666332,26022.0,26021.0,0.12074841]
[1693555071961,3.75660332,26022.0,26021.0,0.12074841]
[1693555072195,3.75642332,26022.0,26021.0,0.12074841]
[1693555072371,3.56403332,26022.0,26021.0,0.12074841]
[1693555072579,3.75618332,26022.0,26021.0,0.12074841]
[1693555072780,3.75630332,26022.0,26021.0,0.12074841]
[1693555073323,3.75666332,26022.0,26021.0,0.12074841]
[1693555073548,3.75144332,26022.0,26021.0,0.12074841]
[1693555073757,3.75300332,26022.0,26021.0,0.12074841]
[1693555073984,3.75294332,26022.0,26021.0,0.12074841]
[1693555074181,3.75234332,26022.0,26021.0,0.12074841]
[1693555074395,3.75138332,26022.0,26021.0,0.12074841]
[1693555074601,3.75114332,26022.0,26021.0,0.12074841]
[1693555074824,3.75048332,26022.0,26021.0,0.12074841]
[1693555075027,3.75024332,26022.0,26021.0,0.12074841]
[1693555075226,3.75018332,26022.0,26021.0,0.12074841]
[1693555075447,3.74988332,26022.0,26021.0,0.12074841]
[1693555075845,3.74982332,26022.0,26021.0,0.12074841]
[1693555076088,3.74970332,26022.0,26021.0,0.12074841]
[1693555076225,3.74946332,26022.0,26021.0,0.12074841]
[1693555076428,3.74958332,26022.0,26021.0,0.12074841]
[1693555076629,3.74946332,26022.0,26021.0,0.12074841]
[1693555076832,3.74958332,26022.0,26021.0,0.12074841]
[1693555077034,3.63100332,26022.0,26021.0,0.12074841]
[1693555077238,3.63088332,26022.0,26021.0,0.12074841]
[1693555077441,3.63082332,26022.0,26021.0,0.12074841]
[1693555077644,3.62950332,26022.0,26021.0,0.12074841]
[1693555077860,3.63076332,26022.0,26021.0,0.12074841]
[1693555078069,3.63058332,26022.0,26021.0,0.12074841]
[1693555078265,3.63040332,26022.0,26021.0,0.12074841]
[1693555078472,3.63028332,26022.0,26021.0,0.12074841]
[1693555078685,3.63052332,26022.0,26021.0,0.12074841]
[1693555078858,3.63094332,26022.0,26021.0,0.12074841]
[1693555079060,3.63076332,26022.0,26021.0,0.12074841]
[1693555079300,3.63064332,26022.0,26021.0,0.12074841]
[1693555079627,3.63052332,26022.0,26021.0,0.12074841]
[1693555079813,3.63064332,26022.0,26021.0,0.12074841]
[1693555080016,3.63076332,26022.0,26021.0,0.12074841]
[1693555080219,3.63052332,26022.0,26021.0,0.12074841]
[1693555080371,3.62980332,26022.0,26021.0,0.12074841]
[1693555080566,3.62902332,26022.0,26021.0,0.12074841]
[1693555080792,3.62908332,26022.0,26021.0,0.12074841]
[1693555080991,3.62860332,26022.0,26021.0,0.12074841]
[1693555081342,3.62818332,26022.0,26021.0,0.12074841]
[1693555081542,3.63106332,26022.0,26021.0,0.12074841]
[1693555081678,3.62866332,26022.0,26021.0,0.12074841]
[1693555081879,3.62734332,26022.0,26021.0,0.12074841]
[1693555082088,3.63136332,26022.0,26021.0,0.12074841]
[1693555082412,3.63124332,26022.0,26021.0,0.12074841]
[1693555082668,3.63118332,26022.0,26021.0,0.12074841]
[1693555082830,3.63112332,26022.0,26021.0,0.12074841]
[1693555083173,3.63136332,26022.0,26021.0,0.12074841]
[1693555083383,3.63130332,26022.0,26021.0,0.12074841]
[1693555083586,3.63124332,26022.0,26021.0,0.12074841]
[1693555083794,3.63112332,26022.0,26021.0,0.12074841]
[1693555084002,3.63106332,26022.0,26021.0,0.12074841]
[1693555084314,3.63022332,26022.0,26021.0,0.12503385]
[1693555084516,3.63028332,26022.0,26021.0,0.12503385]
[1693555084721,3.63016332,26022.0,26021.0,0.12503385]
[1693555084940,3.63064332,26022.0,26021.0,0.12503385]
[1693555085146,3.63058332,26022.0,26021.0,0.12503385]
[1693555085411,3.63052332,26022.0,26021.0,0.12503385]
[1693555085617,3.63190332,26022.0,26021.0,0.12503385]
[1693555085830,3.63202332,26022.0,26021.0,0.12503385]
[1693555086071,3.63196332,26022.0,26021.0,0.12503385]
[1693555086246,3.63178332,26022.0,26021.0,0.12503385]
[1693555086482,3.63166332,26022.0,26021.0,0.12503385]
[1693555086868,3.63226332,26022.0,26021.0,0.12503385]
[1693555087096,3.75066332,26022.0,26021.0,0.12503385]
[1693555087337,3.75060332,26022.0,26021.0,0.12503385]
[1693555087512,3.75048332,26022.0,26021.0,0.12503385]
[1693555087944,3.75030332,26022.0,26021.0,0.12503385]
[1693555088120,3.75036332,26022.0,26021.0,0.12503385]
[1693555088321,3.75018332,26022.0,26021.0,0.12503385]
[1693555088525,3.75030332,26022.0,26021.0,0.12503385]
[1693555088742,3.74922332,26022.0,26021.0,0.12503385]
[1693555089088,3.74916332,26022.0,26021.0,0.12503385]
[1693555089298,3.74988332,26022.0,26021.0,0.12503385]
[1693555089550,3.74970332,26022.0,26021.0,0.12503385]
[1693555089749,3.74964332,26022.0,26021.0,0.12503385]
[1693555089979,3.74958332,26022.0,26021.0,0.12503385]
[1693555090325,3.74916332,26022.0,26021.0,0.12503385]
[1693555090512,3.74910332,26022.0,26021.0,0.12503385]
[1693555090657,3.74892332,26022.0,26021.0,0.12503385]
[1693555090880,3.74874332,26022.0,26021.0,0.12503385]
[1693555091082,3.74868332,26022.0,26021.0,0.12503385]
[1693555091283,3.74850332,26022.0,26021.0,0.12503385]
[1693555091510,3.74946332,26022.0,26021.0,0.12503385]
[1693555091707,3.74928332,26022.0,26021.0,0.12503385]
[1693555092051,3.74922332,26022.0,26021.0,0.02503385]
[1693555092259,3.74886332,26022.0,26021.0,0.02503385]
[1693555092376,3.74880332,26022.0,26021.0,0.02503385]
[1693555092572,3.74826332,26022.0,26021.0,0.02503385]
[1693555092979,3.74820332,26022.0,26021.0,0.02503385]
[1693555093251,3.74832332,26022.0,26021.0,0.02503385]
[1693555093424,3.74766332,26022.0,26021.0,0.02503385]
[1693555093633,3.74700332,26022.0,26021.0,0.02503385]
[1693555093843,3.74730332,26022.0,26021.0,0.02503385]
[1693555094044,3.74766332,26022.0,26021.0,0.02503385]
[1693555094249,3.74778332,26022.0,26021.0,0.02503385]
[1693555094564,3.74814332,26022.0,26021.0,0.02503385]
[1693555094762,3.17158832,26022.0,26021.0,0.02503385]
[1693555094978,3.17134832,26022.0,26021.0,0.02503385]
[1693555095112,3.17128832,26022.0,26021.0,0.02503385]
[1693555095323,3.16870832,26022.0,26021.0,0.02503385]
[1693555095521,3.17044832,26022.0,26021.0,0.02503385]
[1693555096014,3.17020832,26022.0,26021.0,0.02503385]
[1693555096190,3.17140832,26022.0,26021.0,0.02503385]
[1693555096399,3.17044832,26022.0,26021.0,0.02503385]
[1693555096554,3.17068832,26022.0,26021.0,0.02503385]
[1693555096731,3.17134832,26022.0,26021.0,0.02503385]
[1693555096933,3.17128832,26022.0,26021.0,0.12503385]
[1693555097159,3.17122832,26022.0,26021.0,0.12503385]
[1693555097367,3.17134832,26022.0,26021.0,0.12503385]
[1693555097601,3.17140832,26022.0,26021.0,0.12503385]
[1693555097798,3.17116832,26022.0,26021.0,0.12503385]
[1693555098000,3.17098832,26022.0,26021.0,0.12503385]
[1693555098421,3.16516832,26022.0,26021.0,0.12503385]
[1693555098864,3.16474832,26022.0,26021.0,0.12503385]
[1693555099044,3.16522832,26022.0,26021.0,0.12503385]
[1693555099238,3.16534832,26022.0,26021.0,0.12503385]
[1693555099419,3.16630832,26022.0,26021.0,0.12503385]
[1693555099620,3.16660832,26022.0,26021.0,0.12503385]
[1693555100117,3.16702832,26022.0,26021.0,0.12503385]
[1693555100466,3.16720832,26022.0,26021.0,0.12503385]
[1693555100823,3.16732832,26022.0,26021.0,0.12503385]
[1693555101026,3.16720832,26022.0,26021.0,0.12503385]
[1693555101228,2.99310832,26022.0,26021.0,0.12503385]
[1693555101430,2.99238832,26022.0,26021.0,0.12503385]
[1693555101647,2.68084386,26022.0,26021.0,0.12503385]
[1693555101855,2.67934386,26022.0,26021.0,0.12503385]
[1693555102055,2.67952386,26022.0,26021.0,0.12503385]
[1693555102253,2.67778386,26022.0,26021.0,0.12503385]
[1693555102458,2.67724386,26022.0,26021.0,0.12503385]
[1693555102700,2.67772386,26022.0,26021.0,0.12503385]
[1693555102858,2.67616386,26022.0,26021.0,0.12503385]
[1693555103063,2.67916386,26022.0,26021.0,0.12503385]
[1693555103259,2.68036386,26022.0,26021.0,0.12503385]
[1693555103461,2.68054386,26022.0,26021.0,0.12503385]
[1693555103638,2.68036386,26022.0,26021.0,0.12503385]
[1693555103833,2.68030386,26022.0,26021.0,0.12503385]
[1693555104041,2.68216386,26022.0,26021.0,0.12503385]
[1693555104241,2.68246386,26022.0,26021.0,0.12503385]
[1693555104435,2.68294386,26022.0,26021.0,0.12503385]
[1693555104665,2.85704386,26022.0,26021.0,0.12503385]
[1693555104915,2.85722386,26022.0,26021.0,0.12503385]
[1693555105447,2.85716386,26022.0,26021.0,0.12503385]
[1693555105649,2.85698386,26022.0,26021.0,0.12503385]
[1693555105912,2.85716386,26022.0,26021.0,0.12503385]
[1693555106075,2.85692386,26022.0,26021.0,0.12503385]
[1693555106653,2.85722386,26022.0,26021.0,0.12503385]
[1693555106845,2.86034386,26022.0,26021.0,0.12503385]
[1693555107032,2.85974386,26022.0,26021.0,0.12503385]
[1693555107174,2.85980386,26022.0,26021.0,0.12503385]
[1693555107400,2.85986386,26022.0,26021.0,0.12503385]
[1693555108264,2.85998386,26022.0,26021.0,0.12503385]
[1693555108480,2.86010386,26022.0,26021.0,0.12503385]
[1693555108696,2.86016386,26022.0,26021.0,0.12503385]
[1693555108891,2.86022386,26022.0,26021.0,0.12503385]
[1693555109092,2.85986386,26022.0,26021.0,0.12503385]
[1693555109400,2.86022386,26022.0,26021.0,0.12503385]
[1693555109600,2.86196386,26022.0,26021.0,0.12503385]
[1693555109776,2.86178386,26022.0,26021.0,0.12503385]
[1693555110133,2.86172386,26022.0,26021.0,0.12503385]
[1693555110342,2.86244386,26022.0,26021.0,0.12503385]
[1693555110538,2.86256386,26022.0,26021.0,0.12503385]
[1693555110740,2.86250386,26022.0,26021.0,0.12503385]
[1693555110920,2.86256386,26022.0,26021.0,0.12503385]
[1693555111301,2.86244386,26022.0,26021.0,0.12503385]
[1693555111501,2.86238386,26022.0,26021.0,0.12503385]
[1693555111712,2.86298386,26022.0,26021.0,0.12503385]
[1693555111889,2.86274386,26022.0,26021.0,0.12503385]
[1693555112232,2.86280386,26022.0,26021.0,0.12503385]
[1693555112407,2.86256386,26022.0,26021.0,0.12503385]
[1693555112666,2.86298386,26022.0,26021.0,0.12503385]
[1693555112823,2.86304386,26022.0,26021.0,0.12503385]
[1693555113267,2.86310386,26022.0,26021.0,0.12503385]
[1693555113445,2.86346386,26022.0,26021.0,0.12503385]
[1693555113622,2.86280386,26022.0,26021.0,0.12503385]
[1693555113823,2.86286386,26022.0,26021.0,0.12503385]
[1693555114025,2.86298386,26022.0,26021.0,0.12503385]
[1693555114201,3.24821639,26022.0,26021.0,0.12503385]
[1693555114400,2.86304386,26022.0,26021.0,0.12503385]
[1693555114706,2.86208386,26022.0,26021.0,0.12503385]
[1693555114910,2.86214386,26022.0,26021.0,0.12503385]
[1693555115155,2.86208386,26022.0,26021.0,0.12503385]
[1693555115513,2.86262386,26022.0,26021.0,0.12503385]
[1693555115713,2.86310386,26022.0,26021.0,0.12503385]
[1693555116093,2.86316386,26022.0,26021.0,0.12503385]
[1693555116497,2.86076386,26022.0,26021.0,0.12503385]
[1693555116629,2.86298386,26022.0,26021.0,0.12503385]
[1693555116831,2.86304386,26022.0,26021.0,0.12503385]
[1693555117078,2.86382386,26022.0,26021.0,0.12503385]
[1693555117279,2.86556386,26022.0,26021.0,0.12503385]
[1693555117553,2.86796386,26022.0,26021.0,0.12503385]
[1693555117727,2.86766386,26022.0,26021.0,0.12503385]
[1693555117927,2.86772386,26022.0,26021.0,0.12503385]
[1693555118156,2.86754386,26022.0,26021.0,0.12503385]
[1693555118353,2.86640386,26022.0,26021.0,0.12503385]
[1693555118560,2.86550386,26022.0,26021.0,0.12503385]
[1693555118762,2.86556386,26022.0,26021.0,0.12503385]
[1693555119684,2.86640386,26022.0,26021.0,0.12503385]
[1693555119884,2.86634386,26022.0,26021.0,0.12503385]
[1693555120106,2.86640386,26022.0,26021.0,0.12503385]
[1693555120318,2.86700386,26022.0,26021.0,0.12503385]
[1693555120460,2.86706386,26022.0,26021.0,0.12503385]
[1693555120663,3.25451803,26022.0,26021.0,0.12503385]
[1693555120860,3.25637803,26022.0,26021.0,0.12503385]
[1693555121060,3.25703803,26022.0,26021.0,0.12503385]
[1693555121404,3.25757803,26022.0,26021.0,0.12503385]
[1693555121620,3.25751803,26022.0,26021.0,0.12503385]
[1693555121762,3.25727803,26022.0,26021.0,0.12503385]
[1693555122227,3.25745803,26022.0,26021.0,0.12503385]
[1693555122691,3.25739803,26022.0,26021.0,0.12503385]
[1693555122843,3.25745803,26022.0,26021.0,0.12503385]
[1693555123046,3.25721803,26022.0,26021.0,0.12503385]
[1693555123493,3.25733803,26022.0,26021.0,0.12503385]
[1693555123687,3.25715803,26022.0,26021.0,0.12503385]
[1693555124134,3.25673803,26022.0,26021.0,0.12503385]
[1693555124355,3.25661803,26022.0,26021.0,0.12503385]
[1693555124556,3.25679803,26022.0,26021.0,0.12503385]
[1693555124941,3.25513992,26022.0,26021.0,0.12503385]
[1693555125113,3.25519992,26022.0,26021.0,0.12503385]
[1693555125516,3.25513992,26022.0,26021.0,0.12503385]
[1693555125716,3.25495992,26022.0,26021.0,0.12503385]
[1693555125929,2.86774575,26022.0,26021.0,0.12503385]
[1693555126100,2.86780575,26022.0,26021.0,0.12503385]
[1693555126305,2.86774575,26022.0,26021.0,0.12503385]
[1693555126507,2.86750575,26022.0,26021.0,0.12503385]
[1693555126754,2.86774575,26022.0,26021.0,0.12503385]
[1693555127130,2.86780575,26022.0,26021.0,0.12503385]
[1693555127329,2.86786575,26022.0,26021.0,0.12503385]
[1693555127696,2.86780575,26022.0,26021.0,0.12503385]
[1693555127926,2.86786575,26022.0,26021.0,0.12503385]
[1693555128239,2.86726575,26022.0,26021.0,0.12503385]
[1693555128439,2.86690575,26022.0,26021.0,0.12503385]
[1693555128740,2.86684575,26022.0,26021.0,0.12503385]
[1693555129195,2.86678575,26022.0,26021.0,0.12503385]
[1693555129391,2.86696575,26022.0,26021.0,0.12503385]
[1693555129970,2.86678575,26022.0,26021.0,0.12503385]
[1693555130451,2.86216575,26022.0,26021.0,0.12503385]
[1693555130660,2.85958575,26022.0,26021.0,0.12503385]
[1693555130834,2.85970575,26022.0,26021.0,0.12503385]
[1693555131073,2.85838575,26022.0,26021.0,0.12503385]
[1693555131387,2.85862575,26022.0,26021.0,0.12503385]
[1693555131586,2.85892575,26022.0,26021.0,0.12503385]
[1693555131787,2.85898575,26022.0,26021.0,0.12503385]
[1693555131990,2.85988575,26022.0,26021.0,0.12503385]
[1693555132327,2.85742575,26022.0,26021.0,0.12503385]
[1693555132529,2.85994575,26022.0,26021.0,0.12503385]
[1693555132725,2.86018575,26022.0,26021.0,0.12503385]
[1693555132977,2.86024575,26022.0,26021.0,0.12503385]
[1693555133374,2.86012575,26022.0,26021.0,0.12503385]
[1693555133605,2.85910575,26022.0,26021.0,0.12503385]
[1693555133968,2.85916575,26022.0,26021.0,0.12503385]
[1693555134173,2.85904575,26022.0,26021.0,0.12503385]
[1693555134383,2.85934575,26022.0,26021.0,0.12503385]
[1693555134583,2.85922575,26022.0,26021.0,0.12503385]
[1693555134805,2.85934575,26022.0,26021.0,0.12503385]
[1693555135050,2.85940575,26022.0,26021.0,0.12503385]
[1693555135251,2.85976575,26022.0,26021.0,0.12503385]
[1693555135473,2.86060575,26022.0,26021.0,0.12503385]
[1693555135878,2.86066575,26022.0,26021.0,0.12503385]
[1693555136350,2.86054575,26022.0,26021.0,0.12503385]
[1693555136755,2.85886575,26022.0,26021.0,0.12503385]
[1693555136960,2.85874575,26022.0,26021.0,0.12503385]
[1693555137135,2.85886575,26022.0,26021.0,0.12503385]
[1693555137726,2.85904575,26022.0,26021.0,0.12503385]
[1693555138070,2.85874575,26022.0,26021.0,0.12503385]
[1693555138246,2.85880575,26022.0,26021.0,0.12503385]
[1693555138589,2.86072575,26022.0,26021.0,0.12503385]
[1693555138793,2.86006575,26022.0,26021.0,0.12503385]
[1693555139200,2.85982575,26022.0,26021.0,0.12503385]
[1693555139577,2.85958575,26022.0,26021.0,0.12503385]
[1693555139780,2.86018575,26022.0,26021.0,0.12503385]
[1693555139987,2.86132575,26022.0,26021.0,0.12503385]
[1693555140188,2.86108575,26022.0,26021.0,0.12503385]
[1693555140411,2.86264575,26022.0,26021.0,0.12503385]
[1693555140543,2.86228575,26022.0,26021.0,0.12503385]
[1693555140741,2.86246575,26022.0,26021.0,0.12503385]
[1693555141010,2.86252575,26022.0,26021.0,0.12503385]
[1693555141160,2.86282575,26022.0,26021.0,0.12503385]
[1693555141583,2.86270575,26022.0,26021.0,0.12503385]
[1693555141780,2.86282575,26022.0,26021.0,0.12503385]
[1693555141958,2.86282575,26022.0,26021.0,0.1197605]
[1693555142165,2.86288575,26022.0,26021.0,0.1197605]
[1693555142381,2.86276575,26022.0,26021.0,0.1197605]
[1693555142790,2.86258575,26022.0,26021.0,0.1197605]
[1693555142997,2.86264575,26022.0,26021.0,0.1197605]
[1693555143194,2.86438575,26022.0,26021.0,0.1197605]
[1693555143879,2.86432575,26022.0,26021.0,0.1197605]
[1693555144079,2.86420575,26022.0,26021.0,0.1197605]
[1693555144282,2.86402575,26022.0,26021.0,0.1197605]
[1693555144479,2.86384575,26022.0,26021.0,0.1197605]
[1693555144684,2.86390575,26022.0,26021.0,0.1197605]
[1693555144887,2.86384575,26022.0,26021.0,0.1197605]
[1693555145524,2.86408575,26022.0,26021.0,0.1197605]
[1693555145768,2.86384575,26022.0,26021.0,0.1197605]
[1693555145975,2.86378575,26022.0,26021.0,0.1197605]
[1693555146377,2.86372575,26022.0,26021.0,0.1197605]
[1693555147125,2.86408575,26022.0,26021.0,0.1197605]
[1693555147327,2.86600575,26022.0,26021.0,0.1197605]
[1693555147529,2.86588575,26022.0,26021.0,0.1197605]
[1693555147749,2.86474575,26022.0,26021.0,0.1197605]
[1693555147950,2.86504575,26022.0,26021.0,0.1197605]
[1693555148605,2.86498575,26022.0,26021.0,0.1197605]
[1693555148965,2.86462575,26022.0,26021.0,0.1197605]
[1693555149173,2.86468575,26022.0,26021.0,0.1197605]
[1693555149570,2.86426575,26022.0,26021.0,0.1197605]
[1693555149835,2.86414575,26022.0,26021.0,0.1197605]
[1693555150143,2.86426575,26022.0,26021.0,0.1197605]
[1693555150493,2.86432575,26022.0,26021.0,0.1197605]
[1693555150925,2.86462575,26022.0,26021.0,0.1197605]
[1693555151162,2.86456575,26022.0,26021.0,0.1197605]
[1693555151345,2.86516575,26022.0,26021.0,0.1197605]
[1693555151711,2.86498575,26022.0,26021.0,0.1197605]
[1693555152278,2.86492575,26022.0,26021.0,0.1197605]
[1693555152681,2.86132575,26022.0,26021.0,0.1197605]
[1693555152899,2.86042575,26022.0,26021.0,0.1197605]
[1693555153033,2.86048575,26022.0,26021.0,0.1197605]
[1693555153436,2.86378575,26022.0,26021.0,0.1197605]
[1693555153825,2.86318575,26022.0,26021.0,0.1197605]
[1693555154211,2.86312575,26022.0,26021.0,0.1197605]
[1693555154620,2.86252575,26022.0,26021.0,0.1197605]